fUSD/lending_fUSD_20260404
["ID","MTS","AMOUNT","RATE_DAILY","PERIOD"]
[419736920,1775345441454,-150.0,0.000144,2]
[419736921,1775345441466,-150.0,0.000144,2]
[419736922,1775345441477,-150.0,0.000144,2]
[419736923,1775345441486,-150.0,0.000144,2]
[419736924,1775345441496,-150.0,0.000144,2]
[419736925,1775345441505,-150.0,0.000144,2]
[419736926,1775345441515,-150.0,0.000144,2]
[419736927,1775345441524,-200.67348083,0.000144,2]
[419736928,1775345441534,-150.0,0.00014418,2]
[419736929,1775345441543,-150.0,0.00014425,2]
[419736930,1775345441553,-150.0,0.00014425,2]
[419736931,1775345441563,-150.0,0.00014425,2]
[419736932,1775345441572,-150.0,0.00014431,2]
[419736933,1775345441582,-150.0,0.00014434,2]
[419736934,1775345441591,-150.0,0.00014435,2]
[419736935,1775345441601,-150.0,0.0001444,2]
[419736936,1775345441610,-150.0,0.0001445,2]
[419736937,1775345441620,-150.0,0.00014451,2]
[419736938,1775345441629,-150.0,0.00014451,2]
[419736939,1775345441639,-150.0,0.00014453,2]
[419736940,1775345441648,-150.0,0.00014462,2]
[419736941,1775345441658,-150.0,0.00014464,2]
[419736942,1775345441668,-500.0,0.00014465,2]
[419736943,1775345441678,-29925.94485272,0.00014465,2]
[419736944,1775345441688,-186.5403824,0.00014466,2]
[419736945,1775345441702,-46262.38313849,0.00014467,2]
[419736946,1775345441712,-150.0,0.00014468,2]
[419736947,1775345441721,-150.0,0.0001447,2]
[419736948,1775345441731,-150.0,0.0001447,2]
[419736949,1775345441740,-150.0,0.00014475,2]
[419736950,1775345441750,-150.0,0.00014476,2]
[419736951,1775345441760,-150.0,0.00014476,2]
[419736952,1775345441771,-150.0,0.00014488,2]
[419736953,1775345441781,-150.0,0.00014492,2]
[419736954,1775345441790,-150.0,0.000145,2]
[419736955,1775345441799,-150.0,0.00014502,2]
[419736956,1775345441808,-150.0,0.00014502,2]
[419736957,1775345441821,-150.0,0.00014502,2]
[419736958,1775345441831,-150.0,0.00014505,2]
[419736959,1775345441842,-1497.28075362,0.00014512,2]
[419736960,1775345441854,-150.0,0.00014514,2]
[419736961,1775345441864,-150.0,0.00014523,2]
[419736962,1775345441873,-150.0,0.00014523,2]
[419736963,1775345441883,-150.0,0.00014525,2]
[419736964,1775345441893,-150.0,0.00014527,2]
[419736965,1775345441904,-150.0,0.00014527,2]
[419736966,1775345441914,-150.0,0.00014528,2]
[419736967,1775345441924,-150.0,0.00014536,2]
[419736968,1775345441936,-150.0,0.00014539,2]
[419736969,1775345441946,-160.0,0.0001454,2]
[419736970,1775345441955,-150.0,0.00014541,2]
[419736971,1775345441964,-150.0,0.0001455,2]
[419736972,1775345441974,-150.0,0.00014552,2]
[419736973,1775345441984,-150.0,0.00014552,2]
[419736974,1775345441993,-150.0,0.00014554,2]
[419736975,1775345442003,-150.0,0.00014558,2]
[419736976,1775345442012,-150.0,0.0001457,2]
[419736977,1775345442021,-150.0,0.00014575,2]
[419736978,1775345442031,-150.0,0.00014576,2]
[419736979,1775345442040,-150.0,0.00014578,2]
[419736980,1775345442050,-150.0,0.00014578,2]
[419736981,1775345442060,-500.0,0.00014583,2]
[419736982,1775345442070,-500.0,0.00014583,2]
[419736983,1775345442080,-150.0,0.00014585,2]
[419736984,1775345442154,-150.0,0.00014592,2]
[419736985,1775345442164,-150.0,0.00014593,2]
[419736986,1775345442174,-150.0,0.000146,2]
[419736987,1775345442183,-500.0,0.000146,2]
[419736988,1775345442193,-500.0,0.000146,2]
[419736989,1775345442202,-500.0,0.000146,2]
[419736990,1775345442211,-502.19050137,0.000146,2]
[419736991,1775345442221,-165.64274187,0.000146,2]
[419736992,1775345442231,-500.0,0.000146,2]
[419736993,1775345442240,-392.10429392,0.000146,2]
[419736994,1775345442249,-150.0,0.00014603,2]
[419736995,1775345442258,-150.0,0.00014603,2]
[419736996,1775345442267,-150.0,0.00014604,2]
[419736997,1775345442276,-150.0,0.00014609,2]
[419736998,1775345442285,-150.0,0.00014611,2]
[419736999,1775345442294,-186.46,0.00014612,2]
[419737000,1775345442304,-150.0,0.00014615,2]
[419737001,1775345442313,-185.76,0.00014621,2]
[419737002,1775345442323,-150.0,0.00014625,2]
[419737003,1775345442332,-150.0,0.00014629,2]
[419737004,1775345442341,-150.0,0.00014629,2]
[419737005,1775345442350,-150.0,0.00014629,2]
[419737006,1775345442359,-150.0,0.00014629,2]
[419737007,1775345442369,-419.58,0.00014634,2]
[419737008,1775345442378,-150.0,0.00014638,2]
[419737009,1775345442388,-150.0,0.00014646,2]
[419737010,1775345442397,-150.0,0.00014646,2]
[419737011,1775345442407,-150.0,0.0001465,2]
[419737012,1775345442416,-150.0,0.00014654,2]
[419737013,1775345442426,-150.0,0.00014654,2]
[419737014,1775345442435,-1600.0,0.00014654,2]
[419737015,1775345442445,-150.0,0.00014656,2]
[419737016,1775345442456,-150.0,0.00014664,2]
[419737017,1775345442466,-150.0,0.00014672,2]
[419737018,1775345442475,-150.0,0.00014675,2]
[419737019,1775345442484,-150.0,0.00014677,2]
[419737020,1775345442494,-501.3800559,0.00014678,2]
[419737021,1775345442503,-500.0,0.00014678,2]
[419737022,1775345442513,-500.0,0.00014678,2]
[419737023,1775345442522,-150.0,0.00014678,2]
[419737024,1775345442532,-150.0,0.00014679,2]
[419737025,1775345442540,-150.0,0.00014679,2]
[419737026,1775345442550,-150.0,0.00014681,2]
[419737027,1775345442559,-541.48,0.00014695,2]
[419737028,1775345442569,-150.0,0.00014699,2]
[419737029,1775345442578,-150.0,0.000147,2]
[419737030,1775345442588,-500.0,0.00014705,2]
[419737031,1775345442598,-150.0,0.00014705,2]
[419737032,1775345442607,-150.0,0.00014705,2]
[419737033,1775345442616,-150.0,0.00014706,2]
[419737034,1775345442626,-150.0,0.00014708,2]
[419737035,1775345442635,-150.0,0.00014711,2]
[419737036,1775345442644,-150.0,0.00014711,2]
[419737037,1775345442654,-150.0,0.00014711,2]
[419737038,1775345442663,-165.0,0.00014711,2]
[419737039,1775345442673,-150.0,0.00014716,2]
[419737040,1775345442682,-150.0,0.0001472,2]
[419737041,1775345442691,-150.0,0.00014725,2]
[419737042,1775345442700,-150.0,0.0001473,2]
[419737043,1775345442710,-150.0,0.0001473,2]
[419737044,1775345442719,-150.0,0.00014732,2]
[419737045,1775345442728,-286.0,0.00014732,2]
[419737046,1775345442738,-150.0,0.00014734,2]
[419737047,1775345442747,-150.0,0.00014738,2]
[419737048,1775345442756,-150.0,0.0001474,2]
[419737049,1775345442766,-150.0,0.00014743,2]
[419737050,1775345442775,-150.0,0.00014748,2]
[419737051,1775345442784,-150.0,0.0001475,2]
[419737052,1775345442793,-150.0,0.00014752,2]
[419737053,1775345442803,-150.0,0.00014756,2]
[419737054,1775345442811,-150.0,0.00014756,2]
[419737055,1775345442820,-150.0,0.00014769,2]
[419737056,1775345442830,-150.0,0.00014769,2]
[419737057,1775345442839,-150.0,0.00014774,2]
[419737058,1775345442848,-150.0,0.00014775,2]
[419737059,1775345442857,-150.0,0.00014781,2]
[419737060,1775345442866,-150.0,0.00014781,2]
[419737061,1775345442875,-150.0,0.00014784,2]
[419737062,1775345442885,-150.0,0.00014787,2]
[419737063,1775345442894,-374.28257311,0.00014796,2]
[419737064,1775345442904,-503.04138262,0.00014796,2]
[419737065,1775345442913,-150.0,0.000148,2]
[419737066,1775345442923,-150.0,0.000148,2]
[419737067,1775345442932,-150.0,0.000148,2]
[419737068,1775345442941,-150.0,0.00014804,2]
[419737069,1775345442950,-150.0,0.00014806,2]
[419737070,1775345442959,-150.0,0.00014806,2]
[419737071,1775345442969,-150.0,0.00014809,2]
[419737072,1775345442978,-150.0,0.00014817,2]
[419737073,1775345442987,-150.0,0.00014822,2]
[419737074,1775345442997,-150.0,0.00014825,2]
[419737075,1775345443006,-150.0,0.00014831,2]
[419737076,1775345443015,-150.0,0.00014832,2]
[419737077,1775345443026,-150.0,0.00014832,2]
[419737078,1775345443035,-150.0,0.0001484,2]
[419737079,1775345443044,-150.0,0.00014843,2]
[419737080,1775345443054,-150.0,0.00014848,2]
[419737081,1775345443063,-150.0,0.0001485,2]
[419737082,1775345443073,-150.0,0.00014857,2]
[419737083,1775345443082,-150.0,0.00014857,2]
[419737084,1775345443091,-150.0,0.00014857,2]
[419737085,1775345443101,-150.0,0.00014857,2]
[419737086,1775345443111,-150.0,0.00014862,2]
[419737087,1775345443120,-150.0,0.00014875,2]
[419737088,1775345443129,-150.0,0.00014875,2]
[419737089,1775345443139,-150.0,0.00014877,2]
[419737091,1775345443148,-150.0,0.00014883,2]
[419737092,1775345443158,-150.0,0.00014883,2]
[419737093,1775345443167,-150.0,0.00014887,2]
[419737094,1775345443176,-150.0,0.00014892,2]
[419737095,1775345443186,-150.0,0.00014892,2]
[419737096,1775345443196,-182.42124408,0.00014894,2]
[419737097,1775345443206,-150.0,0.000149,2]
[419737098,1775345443215,-5700.0,0.000149,5]
[419737099,1775345443225,-150.0,0.00014908,2]
[419737100,1775345443235,-150.0,0.00014908,2]
[419737101,1775345443244,-150.0,0.0001491,2]
[419737103,1775345443254,-150.0,0.00014911,2]
[419737105,1775345443264,-150.0,0.00014912,2]
[419737106,1775345443273,-150.0,0.00014923,2]
[419737107,1775345443283,-150.0,0.00014925,2]
[419737108,1775345443293,-150.0,0.00014927,2]
[419737109,1775345443303,-150.0,0.00014933,2]
[419737110,1775345443313,-150.0,0.00014933,2]
[419737111,1775345443323,-150.0,0.00014933,2]
[419737112,1775345443332,-150.0,0.00014933,2]
[419737113,1775345443342,-29925.94485272,0.00014944,2]
[419737114,1775345443352,-46262.38313849,0.00014944,2]
[419737115,1775345443362,-150.0,0.00014945,2]
[419737116,1775345443372,-150.0,0.00014945,2]
[419737117,1775345443382,-150.0,0.0001495,2]
[419737118,1775345443391,-150.0,0.00014954,2]
[419737119,1775345443401,-150.0,0.00014957,2]
[419737120,1775345443411,-150.0,0.00014959,2]
[419737121,1775345443421,-150.0,0.00014959,2]
[419737122,1775345443432,-150.0,0.00014963,2]
[419737123,1775345443441,-150.0,0.00014971,2]
[419737124,1775345443452,-150.0,0.00014975,2]
[419737125,1775345443462,-150.0,0.00014976,2]
[419737126,1775345443471,-150.0,0.00014979,2]
[419737127,1775345443480,-186.48,0.00014979,2]
[419737128,1775345443490,-150.0,0.0001498,2]
[419737129,1775345443500,-150.0,0.00014984,2]
[419737130,1775345443510,-150.0,0.00014984,2]
[419737131,1775345443520,-150.0,0.00014985,2]
[419737132,1775345443530,-247.67241686,0.0001499,2]
[419737133,1775345443540,-150.0,0.00014998,2]
[419737134,1775345443550,-532.19,0.00014999,2]
[419737135,1775345443559,-150.0,0.00015,2]
[419737136,1775345443569,-186.48,0.00015002,2]
[419737137,1775345443579,-150.0,0.0001501,2]
[419737138,1775345443588,-150.0,0.0001501,2]
[419737139,1775345443597,-150.0,0.00015013,2]
[419737140,1775345443607,-150.0,0.00015015,2]
[419737141,1775345443617,-150.0,0.00015015,2]
[419737142,1775345443627,-202.28081905,0.00015021,2]
[419737143,1775345443637,-199.23906097,0.00015022,2]
[419737144,1775345443647,-150.0,0.00015025,2]
[419737145,1775345443656,-150.0,0.00015026,2]
[419737146,1775345443665,-150.0,0.00015033,2]
[419737147,1775345443674,-150.0,0.00015035,2]
[419737148,1775345443684,-150.0,0.00015035,2]
[419737149,1775345443693,-150.0,0.0001504,2]
[419737150,1775345443703,-150.0,0.00015046,2]
[419737151,1775345443712,-150.0,0.00015047,2]
[419737152,1775345443721,-150.0,0.0001505,2]
[419737153,1775345443731,-150.0,0.00015051,2]
[419737154,1775345443740,-150.0,0.0001506,2]
[419737155,1775345443750,-150.0,0.0001506,2]
[419737156,1775345443759,-252.38493458,0.00015067,2]
[419737157,1775345443768,-213.71552748,0.00015067,2]
[419737158,1775345443779,-150.0,0.00015068,2]
[419737159,1775345443789,-900.0,0.00015068,2]
[419737160,1775345443799,-800.0,0.00015068,2]
[419737161,1775345443808,-150.0,0.00015075,2]
[419737162,1775345443818,-150.0,0.00015077,2]
[419737163,1775345443828,-150.0,0.00015081,2]
[419737164,1775345443838,-150.0,0.00015086,2]
[419737165,1775345443847,-150.0,0.00015086,2]
[419737166,1775345443856,-150.0,0.00015086,2]
[419737167,1775345443866,-150.0,0.00015086,2]
[419737168,1775345443875,-150.0,0.00015096,2]
[419737169,1775345443885,-150.0,0.000151,2]
[419737170,1775345443895,-541.48,0.00015103,2]
[419737171,1775345443904,-150.0,0.00015103,2]
[419737172,1775345443913,-150.0,0.00015104,2]
[419737173,1775345443923,-150.0,0.00015108,2]
[419737174,1775345443932,-150.0,0.00015111,2]
[419737175,1775345443941,-150.0,0.00015111,2]
[419737176,1775345443951,-150.0,0.00015115,2]
[419737177,1775345443960,-150.0,0.00015121,2]
[419737178,1775345443970,-150.0,0.00015125,2]
[419737179,1775345443979,-150.0,0.00015137,2]
[419737180,1775345443989,-150.0,0.00015137,2]
[419737181,1775345443999,-150.0,0.00015138,2]
[419737182,1775345444010,-150.0,0.00015138,2]
[419737183,1775345444019,-1000.0,0.00015148,2]
[419737184,1775345444030,-1000.0,0.00015148,2]
[419737185,1775345444039,-1000.0,0.00015148,2]
[419737186,1775345444049,-1000.0,0.00015148,2]
[419737187,1775345444058,-150.0,0.00015149,2]
[419737188,1775345444067,-150.0,0.0001515,2]
[419737189,1775345444078,-150.0,0.00015156,2]
[419737190,1775345444087,-150.0,0.00015162,2]
[419737191,1775345444096,-150.0,0.00015162,2]
[419737192,1775345444106,-150.0,0.00015165,2]
[419737193,1775345444115,-150.0,0.00015168,2]
[419737194,1775345444124,-150.0,0.00015169,2]
[419737195,1775345444133,-285.71121168,0.0001517,2]
[419737196,1775345444142,-150.0,0.00015174,2]
[419737197,1775345444152,-150.0,0.00015175,2]
[419737198,1775345444161,-1152.0,0.00015179,2]
[419737200,1775345444170,-186.5403824,0.00015183,2]
[419737202,1775345444180,-150.0,0.00015183,2]
[419737204,1775345444190,-150.0,0.00015187,2]
[419737206,1775345444199,-150.0,0.00015187,2]
[419737208,1775345444210,-150.0,0.00015191,2]
[419737210,1775345444219,-150.0,0.000152,2]
[419737212,1775345444228,-150.0,0.000152,2]
[419737215,1775345444239,-150.0,0.000152,2]
[419737217,1775345444248,-150.0,0.000152,2]
[419737219,1775345444258,-150.0,0.000152,2]
[419737221,1775345444267,-4609.0,0.00015203,2]
[419737224,1775345444276,-416.61736684,0.00015207,2]
[419737226,1775345444285,-150.0,0.00015209,2]
[419737228,1775345444294,-150.0,0.00015213,2]
[419737229,1775345444304,-150.0,0.00015213,2]
[419737231,1775345444314,-785.54,0.00015216,2]
[419737233,1775345444324,-150.0,0.00015217,2]
[419737235,1775345444333,-150.0,0.00015225,2]
[419737237,1775345444341,-1000.0,0.00015226,2]
[419737239,1775345444351,-412.47132242,0.00015226,2]
[419737241,1775345444360,-150.0,0.00015226,2]
[419737242,1775345444369,-150.0,0.00015231,2]
[419737243,1775345444378,-150.0,0.00015232,2]
[419737244,1775345444387,-150.0,0.00015235,2]
[419737245,1775345444397,-150.0,0.00015238,2]
[419737246,1775345444406,-150.0,0.00015238,2]
[419737247,1775345444416,-150.0,0.00015244,2]
[419737248,1775345444425,-150.0,0.0001525,2]
[419737249,1775345444435,-150.0,0.00015251,2]
[419737250,1775345444444,-150.0,0.00015262,2]
[419737251,1775345444454,-150.0,0.00015262,2]
[419737252,1775345444463,-150.0,0.00015263,2]
[419737253,1775345444472,-150.0,0.00015263,2]
[419737254,1775345444482,-150.0,0.00015275,2]
[419737255,1775345444491,-150.0,0.00015279,2]
[419737256,1775345444501,-150.0,0.00015285,2]
[419737257,1775345444510,-150.0,0.00015289,2]
[419737258,1775345444520,-150.0,0.00015289,2]
[419737259,1775345444530,-246.28999866,0.00015291,2]
[419737260,1775345444539,-150.0,0.00015292,2]
[419737261,1775345444549,-150.0,0.00015296,2]
[419737262,1775345444559,-150.0,0.00015297,2]
[419737263,1775345444568,-150.0,0.000153,2]
[419737264,1775345444577,-150.0,0.00015304,2]
[419737265,1775345444587,-150.0,0.00015314,2]
[419737266,1775345444596,-150.0,0.00015314,2]
[419737267,1775345444606,-150.0,0.00015314,2]
[419737268,1775345444616,-150.0,0.00015314,2]
[419737269,1775345444626,-150.0,0.00015319,2]
[419737270,1775345444636,-150.0,0.00015323,2]
[419737271,1775345444645,-150.0,0.00015325,2]
[419737272,1775345444659,-150.0,0.00015332,2]
[419737273,1775345444669,-260.89378088,0.00015337,2]
[419737274,1775345444678,-150.0,0.0001534,2]
[419737275,1775345444688,-150.0,0.0001534,2]
[419737276,1775345444697,-150.0,0.00015349,2]
[419737277,1775345444706,-150.0,0.0001535,2]
[419737278,1775345444715,-150.0,0.00015353,2]
[419737279,1775345444725,-150.0,0.00015354,2]
[419737280,1775345444734,-150.0,0.0001536,2]
[419737281,1775345444744,-150.0,0.00015365,2]
[419737282,1775345444753,-150.0,0.00015365,2]
[419737283,1775345444763,-150.0,0.00015367,2]
[419737284,1775345444772,-150.0,0.00015374,2]
[419737285,1775345444782,-150.0,0.00015375,2]
[419737286,1775345444791,-150.0,0.00015385,2]
[419737287,1775345444801,-150.0,0.00015385,2]
[419737288,1775345444811,-150.0,0.00015387,2]
[419737289,1775345444820,-150.0,0.0001539,2]
[419737290,1775345444830,-150.0,0.0001539,2]
[419737291,1775345444841,-150.0,0.00015396,2]
[419737292,1775345444851,-150.0,0.000154,2]
[419737293,1775345444862,-150.0,0.00015402,2]
[419737294,1775345444873,-150.0,0.00015415,2]
[419737295,1775345444884,-150.0,0.00015416,2]
[419737296,1775345444895,-150.0,0.00015416,2]
[419737297,1775345444905,-4143.0,0.00015418,2]
[419737298,1775345444915,-150.0,0.0001542,2]
[419737299,1775345444924,-500.0,0.00015421,2]
[419737300,1775345444933,-150.0,0.00015421,2]
[419737301,1775345444942,-29925.94485272,0.00015422,2]
[419737302,1775345444954,-46262.38313849,0.00015422,2]
[419737303,1775345444964,-150.0,0.00015424,2]
[419737304,1775345444974,-150.0,0.00015425,2]
[419737305,1775345444985,-150.0,0.00015429,2]
[419737306,1775345444995,-4143.0,0.00015434,2]
[419737307,1775345445006,-150.0,0.00015437,2]
[419737308,1775345445016,-150.0,0.00015441,2]
[419737309,1775345445025,-150.0,0.00015441,2]
[419737310,1775345445034,-150.0,0.00015443,2]
[419737311,1775345445044,-150.0,0.00015446,2]
[419737312,1775345445053,-150.0,0.0001545,2]
[419737313,1775345445063,-150.0,0.00015455,2]
[419737314,1775345445072,-150.0,0.00015455,2]
[419737315,1775345445082,-4143.0,0.00015459,2]
[419737316,1775345445091,-150.0,0.00015467,2]
[419737317,1775345445100,-150.0,0.00015467,2]
[419737318,1775345445110,-150.0,0.00015467,2]
[419737319,1775345445120,-150.0,0.00015467,2]
[419737320,1775345445129,-150.0,0.00015473,2]
[419737321,1775345445139,-150.0,0.00015475,2]
[419737322,1775345445149,-150.0,0.00015477,2]
[419737323,1775345445160,-150.0,0.00015488,2]
[419737324,1775345445169,-150.0,0.00015489,2]
[419737325,1775345445178,-785.54,0.0001549,2]
[419737326,1775345445187,-150.0,0.0001549,2]
[419737327,1775345445197,-150.0,0.00015492,2]
[419737328,1775345445206,-150.0,0.00015492,2]
[419737329,1775345445215,-730.83557716,0.000155,2]
[419737330,1775345445225,-150.0,0.000155,2]
[419737331,1775345445235,-150.0,0.00015508,2]
[419737332,1775345445245,-150.0,0.00015508,2]
[419737333,1775345445256,-9785.33,0.00015511,2]
[419737334,1775345445265,-10000.0,0.00015511,2]
[419737335,1775345445275,-200.0,0.00015511,2]
[419737336,1775345445286,-541.48,0.00015511,2]
[419737337,1775345445296,-150.0,0.00015513,2]
[419737338,1775345445306,-150.0,0.00015517,2]
[419737339,1775345445318,-150.0,0.00015517,2]
[419737340,1775345445327,-150.0,0.00015523,2]
[419737341,1775345445337,-150.0,0.00015525,2]
[419737342,1775345445347,-150.0,0.00015525,2]
[419737343,1775345445357,-150.0,0.00015538,2]
[419737344,1775345445367,-150.0,0.00015543,2]
[419737345,1775345445378,-150.0,0.00015543,2]
[419737346,1775345445388,-150.0,0.00015543,2]
[419737347,1775345445399,-150.0,0.00015543,2]
[419737348,1775345445408,-150.0,0.0001555,2]
[419737349,1775345445418,-150.0,0.00015552,2]
[419737350,1775345445428,-150.0,0.00015557,2]
[419737351,1775345445438,-150.0,0.0001556,2]
[419737352,1775345445447,-4143.0,0.00015564,2]
[419737353,1775345445457,-150.0,0.00015568,2]
[419737354,1775345445468,-150.0,0.00015568,2]
[419737355,1775345445478,-150.0,0.00015569,2]
[419737356,1775345445488,-150.0,0.00015575,2]
[419737357,1775345445499,-150.0,0.00015578,2]
[419737358,1775345445508,-150.0,0.00015583,2]
[419737359,1775345445517,-150.0,0.00015591,2]
[419737360,1775345445527,-150.0,0.00015594,2]
[419737361,1775345445537,-150.0,0.00015594,2]
[419737362,1775345445547,-150.0,0.00015596,2]
[419737363,1775345445557,-150.0,0.000156,2]
[419737364,1775345445567,-150.0,0.000156,2]
[419737365,1775345445576,-150.0,0.000156,2]
[419737366,1775345445586,-1100.0,0.000156,5]
[419737367,1775345445595,-150.0,0.00015613,2]
[419737368,1775345445605,-150.0,0.00015616,2]
[419737369,1775345445614,-150.0,0.00015619,2]
[419737370,1775345445624,-150.0,0.00015619,2]
[419737371,1775345445635,-150.0,0.00015625,2]
[419737372,1775345445645,-150.0,0.00015626,2]
[419737373,1775345445654,-150.0,0.00015631,2]
[419737374,1775345445663,-150.0,0.00015631,2]
[419737375,1775345445672,-4143.0,0.00015631,2]
[419737376,1775345445681,-150.0,0.00015644,2]
[419737377,1775345445691,-150.0,0.00015644,2]
[419737378,1775345445700,-150.0,0.00015648,2]
[419737379,1775345445710,-150.0,0.0001565,2]
[419737380,1775345445719,-150.0,0.00015652,2]
[419737381,1775345445730,-150.0,0.00015657,2]
[419737382,1775345445739,-150.0,0.0001566,2]
[419737383,1775345445748,-150.0,0.00015662,2]
[419737384,1775345445757,-150.0,0.00015666,2]
[419737385,1775345445766,-150.0,0.0001567,2]
[419737386,1775345445776,-150.0,0.0001567,2]
[419737387,1775345445786,-150.0,0.00015675,2]
[419737388,1775345445795,-150.0,0.0001568,2]
[419737389,1775345445804,-150.0,0.00015684,2]
[419737390,1775345445814,-150.0,0.00015692,2]
[419737391,1775345445823,-150.0,0.00015694,2]
[419737392,1775345445832,-150.0,0.00015695,2]
[419737393,1775345445842,-150.0,0.00015695,2]
[419737394,1775345445851,-1500.0,0.00015696,2]
[419737395,1775345445861,-1500.0,0.00015696,2]
[419737396,1775345445870,-1500.0,0.00015696,2]
[419737397,1775345445880,-150.0,0.000157,2]
[419737398,1775345445890,-1100.0,0.000157,5]
[419737399,1775345445900,-150.0,0.00015701,2]
[419737400,1775345445909,-150.0,0.00015719,2]
[419737401,1775345445920,-150.0,0.00015721,2]
[419737402,1775345445929,-150.0,0.00015721,2]
[419737403,1775345445938,-150.0,0.00015722,2]
[419737404,1775345445948,-150.0,0.00015723,2]
[419737405,1775345445957,-150.0,0.00015725,2]
[419737406,1775345445967,-150.0,0.00015728,2]
[419737407,1775345445976,-150.0,0.00015736,2]
[419737408,1775345445985,-192.73866302,0.00015742,2]
[419737409,1775345445994,-150.0,0.00015744,2]
[419737410,1775345446004,-150.0,0.00015746,2]
[419737411,1775345446014,-150.0,0.00015746,2]
[419737412,1775345446024,-150.0,0.0001575,2]
[419737413,1775345446034,-182.0,0.00015753,2]
[419737414,1775345446043,-150.0,0.00015754,2]
[419737415,1775345446053,-150.0,0.00015754,2]
[419737416,1775345446062,-4143.0,0.00015759,2]
[419737417,1775345446074,-150.0,0.00015762,2]
[419737418,1775345446084,-785.54,0.00015764,2]
[419737419,1775345446093,-150.0,0.00015771,2]
[419737420,1775345446103,-150.0,0.00015771,2]
[419737421,1775345446112,-150.0,0.00015771,2]
[419737422,1775345446122,-150.0,0.00015771,2]
[419737423,1775345446131,-150.0,0.00015775,2]
[419737424,1775345446141,-151.3,0.00015779,2]
[419737425,1775345446151,-151.3,0.00015779,2]
[419737426,1775345446160,-151.3,0.00015779,2]
[419737427,1775345446170,-151.3,0.00015779,2]
[419737428,1775345446179,-1538.701433,0.00015779,2]
[419737429,1775345446189,-150.0,0.00015785,2]
[419737430,1775345446199,-150.0,0.00015789,2]
[419737431,1775345446208,-150.0,0.00015791,2]
[419737432,1775345446217,-150.0,0.00015796,2]
[419737433,1775345446227,-150.0,0.00015797,2]
[419737434,1775345446237,-150.0,0.00015797,2]
[419737435,1775345446350,-150.0,0.000158,2]
[419737436,1775345446369,-1100.0,0.000158,5]
[419737437,1775345446379,-587.28841622,0.000158,2]
[419737438,1775345446389,-150.0,0.00015807,2]
[419737439,1775345446399,-150.0,0.00015808,2]
[419737440,1775345446409,-150.0,0.00015815,2]
[419737441,1775345446419,-4143.0,0.00015817,2]
[419737442,1775345446429,-150.0,0.00015817,2]
[419737443,1775345446439,-150.0,0.00015822,2]
[419737444,1775345446448,-150.0,0.00015822,2]